bitfinex-derivatives/quotes_ETHF0:USTF0_20240904
["timestamp","ask_amount","ask_price","bid_price","bid_amount"]
[1725475994582,0.93,2445.3,2445.2,0.40894]
[1725475995986,0.4729,2445.3,2445.2,0.40894]
[1725476000986,0.469,2445.6,2445.5,0.40889]
[1725476003790,0.469,2445.6,2445.4,0.4089]
[1725476003791,4.5578,2445.6,2445.4,0.4089]
[1725476004103,3.2078,2445.5,2445.2,0.456]
[1725476004293,3.2078,2445.5,2445.4,0.40891]
[1725476004588,3.61669,2445.5,2445.2,0.456]
[1725476004896,3.2078,2445.5,2445.1,1.0224]
[1725476005194,3.2078,2445.5,2445.3,0.40892]
[1725476005892,3.2078,2445.5,2445.4,0.40891]
[1725476006898,0.469,2445.6,2445.4,0.40891]
[1725476007887,0.469,2445.6,2445.5,0.40889]
[1725476008082,0.469,2445.6,2445.4,0.40889]
[1725476009094,3.2078,2445.5,2445.3,0.85971]
[1725476009398,3.2078,2445.5,2445.4,0.40891]
[1725476016490,2.05787,2445.6,2445.5,0.40889]
[1725476016491,1.649,2445.6,2445.5,0.40889]
[1725476017595,0.469,2445.6,2445.5,0.40889]
[1725476018494,0.469,2445.6,2445.5,0.87949]
[1725476019695,3.21393484,2445.8,2445.5,0.4706]
[1725476019900,4.39393484,2445.8,2445.7,0.40886]
[1725476020099,3.21393484,2445.8,2445.7,0.40886]
[1725476020791,0.00613484,2445.8,2445.7,7.09376579]
[1725476020994,0.00613484,2445.8,2445.7,6.57081907]
[1725476021192,0.00613484,2445.8,2445.7,6.07161579]
[1725476021593,0.00613484,2445.8,2445.7,5.51981]
[1725476021800,4.1438,2446.2,2446.1,0.40879]
[1725476022193,4.1438,2446.2,2446.1,0.89189]
[1725476023302,3.2078,2446.2,2446.1,0.89189]
[1725476027203,3.2078,2446.2,2446.0,0.4088]
[1725476027406,1.43083,2446.0,2445.9,0.00613484]
[1725476027801,5.97613,2446.0,2445.9,0.00613484]
[1725476029409,12.99815,2446.0,2445.9,0.00613484]
[1725476029703,1.02211,2445.8,2445.6,0.40887]
[1725476029914,3.2078,2445.7,2445.6,0.40887]
[1725476030399,3.2078,2445.7,2445.5,0.40888]
[1725476030400,7.2966,2445.7,2445.5,0.40888]
[1725476030604,0.4568,2445.6,2445.5,0.40888]
[1725476031405,0.4568,2445.6,2445.5,0.96073329]
[1725476032006,0.4568,2445.6,2445.5,0.40888]
[1725476032206,0.4568,2445.6,2445.5,0.96074423]
[1725476032810,3.00322207,2446.0,2445.5,0.96074423]
[1725476032811,3.00322207,2446.0,2445.9,0.40882]
[1725476033306,3.00322207,2446.0,2445.9,0.96060997]
[1725476033507,3.00322207,2446.0,2445.9,0.40882]
[1725476033707,3.00322207,2446.0,2445.9,0.96061513]
[1725476033903,3.00322207,2446.0,2445.9,0.96060795]
[1725476034114,3.00322207,2446.0,2445.9,0.40882]
[1725476034913,3.00322207,2446.0,2445.8,0.40883]
[1725476035117,3.41204207,2446.0,2445.6,0.9161]
[1725476035308,3.41204207,2446.0,2445.8,0.40884]
[1725476036706,3.00322207,2446.0,2445.8,0.40884]
[1725476036907,3.41203207,2446.0,2445.8,0.40884]
[1725476037314,0.40881,2446.0,2445.8,0.40884]
[1725476037714,4.5599,2446.1,2445.9,0.40882]
[1725476037921,0.40881,2446.0,2445.8,0.40883]
[1725476038514,6.9188,2446.0,2445.4,0.44783484]
[1725476038707,6.9188,2446.0,2445.5,0.40888]
[1725476038708,3.61667,2445.7,2445.5,0.40888]
[1725476039015,0.9483,2445.6,2445.5,0.40888]
[1725476039213,0.4612,2445.6,2445.5,0.9607299]
[1725476040713,0.4612,2445.6,2445.5,0.40888]
[1725476041113,0.4612,2445.6,2445.5,0.96072949]
[1725476041625,0.4612,2445.6,2445.5,0.55184949]
[1725476041815,0.9279,2445.6,2445.5,0.55184949]
[1725476042712,1.33677,2445.6,2445.5,0.55184949]
[1725476042914,0.40889,2445.5,2445.4,0.00613484]
[1725476043119,0.40889,2445.5,2445.4,0.96690775]
[1725476043520,0.40889,2445.5,2445.4,0.55799775]
[1725476043818,0.40889,2445.5,2445.4,0.96690775]
[1725476044115,1.33678,2445.6,2445.4,0.55799929]
[1725476044318,0.9279,2445.6,2445.5,0.40889]
[1725476044510,3.2078,2446.0,2445.8,1.0221]
[1725476044707,3.2078,2446.0,2445.9,2.46222952]
[1725476045216,3.2078,2446.0,2445.9,1.44016952]
[1725476045408,3.2078,2446.0,2445.9,2.46222952]
[1725476045615,3.2078,2446.0,2445.9,7.3657038]
[1725476046019,3.2078,2446.0,2445.9,8.3877638]
[1725476046415,3.2078,2446.0,2445.9,11.2177638]
[1725476046709,3.2078,2446.0,2445.9,11.71693556]
[1725476046911,3.62268484,2446.4,2445.9,6.43399556]
[1725476047110,3.62268484,2446.4,2446.2,0.40877]
[1725476047517,3.21393484,2446.4,2446.3,0.40876]
[1725476047818,0.00613484,2446.4,2446.3,0.40876]
[1725476049324,0.00613484,2446.4,2446.3,6.07036523]
[1725476049512,0.2057443,2446.8,2446.7,0.40869]
[1725476049713,4.54204,2447.0,2446.8,0.40867]
[1725476049915,4.1334,2447.0,2446.9,0.40865]
[1725476050121,4.1334,2447.0,2446.5,0.4847]
[1725476050429,3.2078,2446.7,2446.6,0.40871]
[1725476051423,3.61649,2446.7,2446.5,0.41484484]
[1725476051610,0.4659,2446.6,2446.5,0.41484484]
[1725476052817,4.96181,2446.6,2446.5,0.00613484]
[1725476053022,4.5531,2446.6,2446.5,0.00613484]
[1725476053217,4.96181,2446.6,2446.5,0.00613484]
[1725476053415,5.42931,2446.6,2446.5,0.00613484]
[1725476054819,1.34211,2446.6,2446.5,0.41485484]
[1725476055717,1.34211,2446.6,2446.5,0.00613484]
[1725476056412,5.42931,2446.6,2446.5,0.00613484]
[1725476056639,5.42931,2446.6,2446.5,0.41485484]
[1725476056817,5.42931,2446.6,2446.5,0.00613484]
[1725476057434,6.45108,2446.6,2446.5,0.00613484]
[1725476057627,12.45108,2446.6,2446.5,0.00613484]
[1725476058128,0.4659,2446.6,2446.5,0.41485484]
[1725476058327,5.98358,2446.6,2446.5,0.00613484]
[1725476059820,8.81358,2446.6,2446.5,0.00613484]
[1725476060033,4.72638,2446.6,2446.5,0.00613484]
[1725476060218,13.79181,2446.6,2445.9,0.55174583]
[1725476060424,3.61659,2446.2,2446.1,0.40879]
[1725476060618,3.2078,2446.2,2446.1,0.40879]
[1725476061028,4.09607,2446.2,2446.1,0.40879]
[1725476061732,1.02182,2446.5,2446.4,0.40873]
[1725476061733,3.2078,2446.5,2446.4,0.40873]
[1725476061927,4.114,2446.5,2446.4,0.40873]
[1725476062732,4.52273,2446.5,2446.4,0.40873]
[1725476063426,0.40874,2446.4,2446.3,0.40874]
[1725476064135,4.98213,2446.5,2446.4,0.40874]
[1725476064431,0.40875,2446.4,2446.3,0.40874]
[1725476065730,4.98213,2446.5,2446.4,0.40874]
[1725476066131,9.06933,2446.5,2446.4,0.40874]
[1725476067132,3.2078,2446.5,2446.4,0.40874]
[1725476067322,3.6715,2446.9,2446.4,4.49594]
[1725476067527,3.2078,2446.9,2446.8,0.40867]
[1725476071534,0.00613484,2447.0,2446.9,0.40865]
[1725476072635,0.00613484,2447.0,2446.5,1.4108]
[1725476072823,0.00613484,2447.0,2446.9,0.40865]
[1725476073537,0.00613484,2447.0,2446.9,4.49505]
[1725476075936,0.00613484,2447.0,2446.9,5.51669]
[1725476076128,3.20324005,2447.6,2447.0,1.0216]
[1725476076328,0.20001798,2447.6,2447.5,0.40855]
[1725476076539,0.4794,2447.8,2447.3,3.2078]
[1725476076831,0.4794,2447.8,2447.2,3.85152]
[1725476076832,0.4809,2448.1,2448.0,0.40847]
[1725476077741,0.4809,2448.1,2447.9,0.40847]
[1725476078131,0.4809,2448.1,2448.0,0.40847]
[1725476078934,3.2078,2448.2,2448.1,0.40845]
[1725476079339,3.2078,2448.2,2447.8,2.83613484]
[1725476079536,3.2078,2448.2,2448.1,0.40845]
[1725476081442,3.2078,2448.2,2448.0,0.40846]
[1725476081835,3.61624,2448.2,2448.0,0.40846]
[1725476082038,0.40846,2448.1,2447.8,0.41463484]
[1725476082237,1.36286,2448.1,2447.8,0.41463484]
[1725476082543,1.36286,2448.1,2447.9,0.40849]
[1725476082544,0.9544,2448.1,2447.9,0.40849]
[1725476082840,0.9544,2448.1,2447.8,0.00613484]
[1725476082841,0.40849,2447.9,2447.8,0.00613484]
[1725476083040,7.46752,2447.9,2447.8,0.00613484]
[1725476083241,12.02872,2447.9,2447.8,0.00613484]
[1725476084241,11.00749,2447.9,2447.8,0.00613484]
[1725476084440,3.2078,2447.9,2447.8,0.41463484]
[1725476084640,1.36287,2448.1,2448.0,0.40847]
[1725476084641,0.9544,2448.1,2448.0,0.40847]
[1725476084848,0.464,2448.1,2448.0,0.40847]
[1725476085545,0.4756,2448.2,2448.1,0.40845]
[1725476086248,0.4756,2448.2,2448.0,0.40847]
[1725476086249,0.88405,2448.2,2448.0,0.40847]
[1725476086543,0.88405,2448.2,2447.9,0.89038]
[1725476086544,0.40846,2448.1,2447.9,0.89038]
[1725476086750,0.40846,2448.1,2447.9,0.89037]
[1725476086947,0.935,2448.2,2448.0,0.40847]
[1725476086948,1.34345,2448.2,2448.0,0.40847]
[1725476087655,0.40846,2448.1,2448.0,0.40847]
[1725476088546,0.40848,2448.0,2447.9,0.40849]
[1725476088752,0.85758,2448.0,2447.9,0.40849]
[1725476088947,0.85758,2448.0,2447.8,0.41462484]
[1725476089152,0.4491,2448.0,2447.8,0.00613484]
[1725476089354,0.40849,2447.9,2447.8,0.00613484]
[1725476089751,3.61629,2447.9,2447.8,0.00613484]
[1725476089945,0.40846,2448.1,2447.8,0.00613484]
[1725476090143,0.40846,2448.1,2448.0,0.40847]
[1725476090950,4.1428,2448.2,2448.1,0.40845]
[1725476092244,0.935,2448.2,2448.1,0.40845]
[1725476096159,4.1428,2448.2,2448.1,0.40845]
[1725476097848,0.935,2448.2,2448.1,0.40845]
[1725476099159,1.34345,2448.2,2447.8,3.72953484]
[1725476099365,0.40846,2448.1,2447.8,0.00613484]
[1725476099560,0.40848,2448.0,2447.8,0.41463484]
[1725476099756,0.40846,2448.1,2447.9,0.40848]
[1725476100260,0.40849,2447.9,2447.8,0.00613484]
[1725476102664,5.51532,2447.9,2447.8,0.00613484]
[1725476102867,4.49409,2447.9,2447.8,0.00613484]
[1725476103570,8.34532,2447.9,2447.8,0.00613484]
[1725476103960,5.51532,2447.9,2447.8,0.00613484]
[1725476105561,4.49409,2447.9,2447.8,0.00613484]
[1725476106160,3.2078,2448.0,2447.8,0.00613484]
[1725476106357,3.61628,2448.0,2447.8,0.41463484]
[1725476106864,3.61628,2448.0,2447.8,0.00613484]
[1725476107069,0.40849,2447.9,2447.8,0.00613484]
[1725476107766,5.51532,2447.9,2447.8,0.00613484]
[1725476109157,4.49409,2447.9,2447.8,0.00613484]
[1725476110163,5.51532,2447.9,2447.8,0.00613484]
[1725476110563,3.61628,2448.0,2447.8,0.00613484]
[1725476110760,7.70108,2448.0,2447.8,0.41463484]
[1725476111165,3.61628,2448.0,2447.8,0.41463484]
[1725476111462,0.40849,2447.9,2447.8,0.41463484]
[1725476112165,3.2078,2448.0,2447.9,0.40849]
[1725476112560,3.2078,2448.0,2447.9,0.88999]
[1725476112762,3.2078,2448.0,2447.9,1.34709]
[1725476112960,1.34344,2448.2,2448.1,0.40845]
[1725476112961,0.935,2448.2,2448.1,0.40845]
[1725476113167,1.34345,2448.2,2448.1,0.40845]
[1725476113467,1.34344,2448.2,2448.1,0.40845]
[1725476113667,6.04091,2448.2,2447.8,0.41463484]
[1725476113868,3.2078,2447.9,2447.8,0.41463484]
[1725476115271,3.61629,2447.9,2447.8,0.41463484]
[1725476115565,3.2078,2447.9,2447.8,0.41463484]
[1725476116470,3.61629,2447.9,2447.8,0.00613484]
[1725476116677,4.08869,2447.9,2447.8,0.00613484]
[1725476117556,10.21675,2447.9,2447.8,0.00613484]
[1725476118672,9.19552,2447.9,2447.8,0.00613484]
[1725476119568,4.08869,2447.9,2447.8,0.41463484]
[1725476119966,5.10992,2447.9,2447.8,0.00613484]
[1725476120863,4.08869,2447.9,2447.8,0.00613484]
[1725476121269,4.08869,2447.9,2447.8,0.41463484]
[1725476121270,3.6802,2447.9,2447.8,0.41463484]
[1725476121573,3.61629,2447.9,2447.8,0.41463484]
[1725476121864,4.63752,2447.9,2447.8,0.00613484]
[1725476123672,3.61629,2447.9,2447.8,0.00613484]
[1725476123871,4.78413302,2448.1,2447.8,1.02740484]
[1725476124067,0.40846,2448.1,2448.0,0.40847]
[1725476124370,3.2078,2448.2,2448.1,0.40845]
[1725476125062,3.2078,2448.2,2448.1,0.95988164]
[1725476125873,3.2078,2448.2,2448.1,0.95989396]
[1725476126368,3.2078,2448.2,2448.1,0.40845]
[1725476126769,3.2078,2448.2,2448.1,0.95988966]
[1725476127076,3.2078,2448.2,2448.1,0.40845]
[1725476127273,3.2078,2448.2,2448.1,0.95989193]
[1725476128271,3.2078,2448.2,2448.1,0.40845]
[1725476131574,3.66973484,2448.3,2448.2,0.40844]
[1725476131776,4.07815484,2448.3,2448.2,0.40844]
[1725476131972,3.66973484,2448.3,2448.2,0.40844]
[1725476132174,3.21393484,2448.3,2448.2,0.40844]
[1725476137978,0.00613484,2448.3,2448.2,8.89572671]
[1725476138783,0.00613484,2448.3,2448.2,8.89572839]
[1725476140577,3.00322207,2448.8,2448.7,0.40835]
[1725476140786,15.36523302,2449.1,2448.7,0.40834]
[1725476140787,0.4507,2449.0,2448.7,0.40834]
[1725476140971,0.85901,2449.0,2448.8,0.40834]
[1725476141176,0.85901,2449.0,2448.7,0.40834]
[1725476142077,0.85901,2449.0,2448.8,0.40833]
[1725476142283,0.4507,2449.0,2448.9,0.40832]
[1725476142677,0.4507,2449.0,2448.8,0.40833]
[1725476143381,4.10703484,2449.1,2449.0,0.4083]
[1725476143382,0.00613484,2449.1,2449.0,0.4083]
[1725476143585,0.00613484,2449.1,2449.0,4.157]
[1725476143786,0.00613484,2449.1,2449.0,0.862]
[1725476144284,0.00613484,2449.1,2448.8,3.23833]
[1725476144482,3.62222484,2449.1,2448.8,3.23833]
[1725476144679,0.9025,2449.0,2448.8,3.23833]
[1725476145281,0.9025,2449.0,2448.8,2.83]
[1725476145481,1.31081,2449.0,2448.7,0.4537]
[1725476145684,3.2078,2448.8,2448.3,1.74756507]
[1725476145890,3.2078,2448.8,2448.4,0.40839]
[1725476145891,0.40836,2448.7,2448.4,0.40839]
[1725476146078,0.4893,2448.6,2448.4,0.40839]
[1725476146282,0.9451,2448.6,2448.3,1.3865]
[1725476146482,1.4173,2448.6,2448.4,0.4084]
[1725476146690,1.82567,2448.6,2448.3,0.86211]
[1725476146980,0.40839,2448.5,2448.3,0.4537]
[1725476147387,1.82568,2448.6,2448.3,0.86212]
[1725476147891,1.4173,2448.6,2448.5,0.40839]
[1725476148084,0.9451,2448.6,2448.5,0.40839]
[1725476151392,0.9451,2448.6,2448.4,2.83]
[1725476151697,0.9451,2448.6,2448.5,0.40839]
[1725476155594,0.4609,2448.9,2448.8,0.40834]
[1725476155890,0.9225,2449.0,2448.9,0.40832]
[1725476156083,0.9225,2449.0,2448.9,3.23832]
[1725476156291,0.9225,2449.0,2448.9,7.32152]
[1725476157093,0.9225,2449.0,2448.9,3.23832]
[1725476159693,0.00613484,2449.1,2449.0,0.4083]
[1725476161092,0.00613484,2449.1,2449.0,3.6161]
[1725476161996,0.00613484,2449.1,2449.0,8.72007]
[1725476162993,3.2078,2449.5,2449.4,0.40824]
[1725476163501,3.61602,2449.5,2449.3,0.40825]
[1725476164292,3.2078,2449.5,2449.2,0.00613484]
[1725476164597,3.61603,2449.5,2449.3,0.40825]
[1725476164898,3.61603,2449.5,2449.2,0.00613484]
[1725476164899,4.22839,2449.5,2449.2,0.00613484]
[1725476165099,0.40825,2449.4,2449.2,0.41440484]
[1725476165400,1.89359,2449.3,2449.2,0.00613484]
[1725476165896,0.87295,2449.3,2449.2,0.00613484]
[1725476166093,0.4647,2449.3,2449.2,0.41440484]
[1725476166492,0.4647,2449.3,2449.2,0.87310484]
[1725476166695,0.41435484,2449.6,2449.5,0.40822]
[1725476167001,0.00613484,2449.6,2449.5,0.40822]
[1725476167188,0.00613484,2449.6,2449.5,5.51118]
[1725476167393,3.2078,2449.8,2449.7,0.40819]
[1725476167995,3.6701,2449.8,2449.7,0.40819]
[1725476168198,0.40819,2449.7,2449.5,0.40822]
[1725476168399,0.4815,2449.6,2449.5,0.40822]
[1725476168703,3.6701,2449.8,2449.6,0.40819]
[1725476168898,3.6701,2449.8,2449.7,0.40819]
[1725476170695,3.6701,2449.8,2449.6,0.86669]
[1725476170901,0.4815,2449.7,2449.6,0.40819]
[1725476171399,0.8897,2449.7,2449.3,3.2959]
[1725476171605,0.8897,2449.7,2449.5,0.40822]
[1725476173093,0.8897,2449.7,2449.6,0.4082]
[1725476173494,0.4082,2449.6,2449.5,0.40821]
[1725476173698,0.8897,2449.7,2449.5,0.40821]
[1725476173898,1.22139626,2449.6,2449.2,0.00613484]
[1725476174105,3.61604,2449.4,2449.3,0.40825]
[1725476174306,0.40824,2449.4,2449.3,0.40825]
[1725476174504,0.4564,2449.4,2449.3,0.40825]
[1725476176303,0.40825,2449.3,2449.2,0.00613484]
[1725476176498,0.40825,2449.3,2449.2,0.41440484]
[1725476176499,0.4537,2449.3,2449.2,0.41440484]
[1725476177106,0.4564,2449.4,2449.3,0.40825]
[1725476177898,0.4752,2449.5,2449.4,0.40824]
[1725476178108,3.6878,2449.7,2449.6,0.4082]
[1725476178308,4.1584,2449.7,2449.6,0.4082]
[1725476180604,3.6878,2449.7,2449.6,0.4082]
[1725476181009,3.6878,2449.7,2449.6,0.8608]
[1725476181206,0.48,2449.7,2449.6,0.8608]
[1725476182813,4.09599,2449.7,2449.3,2.83]
[1725476183113,4.09599,2449.7,2449.5,0.40821]
[1725476183414,4.096,2449.7,2449.5,0.40821]
[1725476183605,0.4082,2449.6,2449.4,0.40823]
[1725476183911,4.096,2449.7,2449.5,0.40822]
[1725476184306,0.8882,2449.7,2449.5,0.40822]
[1725476184713,0.8882,2449.7,2449.6,0.4082]
[1725476184912,0.8882,2449.7,2449.5,0.40821]
[1725476185213,0.48,2449.7,2449.5,0.40821]
[1725476185513,0.4082,2449.6,2449.5,0.40821]
[1725476185714,0.48,2449.7,2449.6,0.4082]
[1725476185715,0.88819,2449.7,2449.6,0.4082]
[1725476186011,0.48,2449.7,2449.6,0.4082]
[1725476186212,0.86466,2449.9,2449.8,0.40817]
[1725476186407,0.9137,2449.9,2449.8,0.40817]
[1725476187006,1.32185,2449.9,2449.8,0.40817]
[1725476187216,1.32185,2449.9,2449.5,3.85055]
[1725476187511,0.9137,2449.9,2449.8,0.40817]
[1725476187919,1.32185,2449.9,2449.8,0.40817]
[1725476188213,1.32185,2449.9,2449.7,0.87287]
[1725476188420,1.32185,2449.9,2449.7,0.40817]
[1725476188807,0.40817,2449.8,2449.4,0.4647]
[1725476189107,3.2078,2449.7,2449.4,0.4647]
[1725476189307,3.2078,2449.7,2449.2,1.02680484]
[1725476189308,0.4791,2449.6,2449.2,1.02680484]
[1725476189510,0.4791,2449.6,2449.4,0.40824]
[1725476189511,0.4672,2449.5,2449.4,0.40824]
[1725476189818,0.9544,2449.5,2449.4,0.40824]
[1725476190203,1.36262,2449.5,2449.4,0.40824]
[1725476190405,0.9544,2449.5,2449.4,0.40824]
[1725476190609,3.2078,2449.7,2449.4,0.40824]
[1725476190610,3.2078,2449.7,2449.6,0.4082]
[1725476191115,0.9544,2449.9,2449.8,0.40817]
[1725476191311,0.9544,2449.9,2449.8,3.23817]
[1725476192409,0.4672,2449.9,2449.8,3.23817]
[1725476192609,0.4672,2449.9,2449.8,3.68047]
[1725476194720,0.4672,2449.9,2449.8,3.23817]
[1725476196115,0.4672,2449.9,2449.7,0.40818]
[1725476196418,0.87536,2449.9,2449.7,0.40818]
[1725476196618,0.4672,2449.9,2449.8,0.40817]
[1725476196822,0.87536,2449.9,2449.7,0.40818]
[1725476197024,0.4672,2449.9,2449.8,0.40817]
[1725476198613,0.4672,2449.9,2449.7,0.40818]
[1725476198816,0.87536,2449.9,2449.7,0.40818]
[1725476199312,3.675,2449.9,2449.8,0.40817]
[1725476199513,4.08315,2449.9,2449.7,0.40818]
[1725476199711,4.08315,2449.9,2449.5,3.2955]
[1725476199712,3.675,2449.9,2449.5,3.2955]
[1725476199921,4.08316,2449.9,2449.5,3.2955]
[1725476200124,4.08316,2449.9,2449.7,0.40818]
[1725476201216,3.675,2449.9,2449.7,0.40818]
[1725476201424,3.675,2449.9,2449.3,3.2723]
[1725476201425,1.02044,2449.8,2449.3,3.2723]
[1725476201623,3.2078,2449.5,2449.4,0.95916769]
[1725476202025,3.6763,2449.5,2449.4,0.95916769]
[1725476202823,3.6763,2449.5,2449.4,0.55093769]
[1725476203027,3.6763,2449.5,2449.4,0.40824]
[1725476203818,3.6763,2449.5,2449.4,0.95948678]
[1725476204019,3.6763,2449.5,2449.4,0.40824]
[1725476204223,3.6763,2449.5,2449.4,0.959487]
[1725476204422,3.6763,2449.5,2449.4,0.40824]
[1725476204826,3.6763,2449.5,2449.4,0.95948703]
[1725476205930,3.6763,2449.5,2449.4,2.13948703]
[1725476207420,3.6763,2449.5,2449.4,1.58824]
[1725476207630,3.6763,2449.5,2449.4,2.13948552]
[1725476208437,3.6763,2449.5,2449.4,1.73124552]
[1725476208729,3.6763,2449.5,2449.2,1.59440484]
[1725476208928,4.08453,2449.5,2449.3,0.5512707]
[1725476209131,4.08453,2449.5,2449.2,1.59440484]
[1725476209331,4.08453,2449.5,2449.3,0.55127704]
[1725476209538,4.08453,2449.5,2449.2,1.59440484]
[1725476209737,4.08453,2449.5,2449.3,0.5512734]
[1725476209928,4.08453,2449.5,2449.2,1.18613484]
[1725476210232,0.40824,2449.4,2449.3,0.55127576]
[1725476210732,12.69124,2449.4,2449.3,0.55127576]
[1725476211134,16.29537302,2449.4,2449.3,0.55127576]
[1725476211339,0.40825,2449.3,2449.2,0.00613484]
[1725476211533,5.42985,2449.3,2449.2,0.00613484]
[1725476212132,0.4524,2449.3,2449.2,0.41440484]
[1725476212440,0.4524,2449.3,2449.2,1.43727555]
[1725476212828,0.4524,2449.3,2449.2,0.96567555]
[1725476214133,0.4524,2449.3,2449.2,0.96567812]
[1725476215042,0.4524,2449.3,2449.2,0.55740812]
[1725476215043,0.86065,2449.3,2449.2,0.55740812]
[1725476215248,5.96449,2449.3,2449.2,0.00613484]
[1725476216046,12.98513,2449.3,2449.2,0.00613484]
[1725476217637,11.96449,2449.3,2449.2,0.00613484]
[1725476219347,0.40834,2448.8,2448.6,2.82]
[1725476219651,3.61613,2448.9,2448.7,0.40835]
[1725476219857,0.9445,2448.8,2448.7,0.40835]
[1725476220548,0.40836,2448.7,2448.5,0.46903484]
[1725476220740,3.2078,2448.6,2448.5,0.87741484]
[1725476220944,3.61617,2448.6,2448.5,0.00613484]
[1725476221140,0.40841,2448.4,2447.9,0.94302153]
[1725476221355,3.2078,2448.3,2448.2,0.40844]
[1725476221648,4.087,2448.2,2446.6,5.32454562]
[1725476221848,3.2078,2447.6,2447.4,0.40857]
[1725476222051,3.2078,2447.6,2447.3,1.33388]
[1725476222252,3.2078,2447.6,2447.3,1.34001484]
[1725476222455,3.2078,2447.6,2447.4,0.40857]
[1725476222652,3.2078,2447.6,2447.3,1.34001484]
[1725476223255,3.2078,2447.6,2447.3,0.93143484]
[1725476223560,3.2078,2447.6,2447.3,1.34001484]
[1725476223943,3.2078,2447.6,2447.3,0.93143484]
[1725476224460,3.61634,2447.6,2447.3,0.93143484]
[1725476224652,3.2078,2447.6,2447.3,0.00613484]
[1725476224849,1.43001,2447.4,2447.3,0.00613484]
[1725476225254,5.51641,2447.4,2447.3,0.00613484]
[1725476225454,11.51641,2447.4,2447.3,0.00613484]
[1725476225765,0.40866,2446.9,2446.5,1.35591]
[1725476226051,1.02154,2447.2,2446.5,0.9472]
[1725476226052,3.2078,2446.7,2446.5,0.9472]
[1725476226356,6.0278,2446.7,2445.8,0.14553372]
[1725476226557,6.0278,2446.7,2445.6,2.82]
[1725476226558,3.2078,2446.2,2445.6,2.82]
[1725476226852,0.00613484,2446.1,2445.9,2.82]
[1725476227043,0.00613484,2446.1,2445.7,3.77303484]
[1725476227248,0.00613484,2446.1,2445.8,0.40883]
[1725476227555,0.00613484,2446.1,2445.7,4.18187484]
[1725476227750,0.00613484,2446.1,2445.8,0.40884]
[1725476228445,0.00613484,2446.1,2445.7,0.95303484]
[1725476228651,0.00613484,2446.1,2445.9,0.40881]
[1725476229150,0.00613484,2446.1,2446.0,0.40881]
[1725476229355,0.00613484,2446.1,2445.7,3.77303484]
[1725476229857,0.00613484,2446.1,2445.9,0.40881]
[1725476230056,0.00613484,2446.1,2446.0,0.40881]
[1725476232154,0.00613484,2446.1,2446.0,10.49681]
[1725476232354,3.2078,2446.6,2446.5,0.40872]
[1725476232855,3.2078,2446.6,2446.1,2.82]
[1725476232856,3.2078,2446.6,2446.4,0.40873]
[1725476233050,3.2078,2446.6,2446.1,2.82]
[1725476233243,3.2078,2446.6,2446.4,0.40872]
[1725476233855,3.2078,2446.6,2446.3,1.35475]
[1725476234059,3.2078,2446.6,2446.3,0.946]
[1725476234655,3.61651,2446.6,2446.3,0.946]
[1725476234953,3.2078,2446.6,2446.3,0.946]
[1725476235349,2.82,2446.5,2445.8,4.197]
[1725476235553,3.2078,2446.3,2445.8,4.197]
[1725476235753,3.61656,2446.3,2445.9,9.20331901]
[1725476235955,3.61656,2446.3,2445.9,0.40881]
[1725476236345,3.2078,2446.3,2446.0,0.4088]
[1725476236557,6.21715691,2446.7,2446.3,0.40875]
[1725476236852,6.21715691,2446.7,2446.6,0.40871]
[1725476236853,3.21393484,2446.7,2446.6,0.40871]
[1725476237055,0.00613484,2446.7,2446.6,0.40871]
[1725476237449,0.00613484,2446.7,2446.5,0.87361]
[1725476237649,0.00613484,2446.7,2446.6,0.40871]
[1725476237954,0.00613484,2446.7,2446.5,0.4649]
[1725476238458,3.21393484,2446.7,2446.5,0.4649]
[1725476238755,3.21393484,2446.7,2446.6,0.40871]
[1725476238964,3.21393484,2446.7,2446.5,0.4649]
[1725476239459,3.62263484,2446.7,2446.3,0.40875]
[1725476239658,3.62263484,2446.7,2446.4,0.40873]
[1725476239858,4.0872,2446.6,2446.3,8.34905431]
[1725476240057,3.2078,2446.4,2445.8,1.02209]
[1725476240251,3.2078,2446.4,2446.1,9.17214748]
[1725476240453,3.2078,2446.4,2446.1,0.40878]
[1725476241254,3.2078,2446.4,2446.2,0.40877]
[1725476242561,3.2078,2446.4,2446.3,0.40876]
[1725476243459,3.2078,2446.4,2446.2,0.40876]
[1725476244467,3.2078,2446.4,2446.3,0.40876]
[1725476244673,0.40884,2445.8,2445.7,0.00613484]
[1725476244865,4.84588668,2445.8,2445.7,0.00613484]
[1725476245069,14.84098668,2445.8,2445.7,0.00613484]
[1725476245366,15.86308668,2445.8,2445.7,0.00613484]
[1725476247068,14.43214668,2445.8,2445.7,0.00613484]
[1725476247264,14.43214668,2445.8,2444.9,0.66130801]
[1725476247265,14.43214668,2445.8,2444.9,0.4541]
[1725476247464,3.2078,2445.2,2444.9,0.4541]
[1725476247665,3.2078,2445.5,2445.0,8.66520003]
[1725476248374,3.2078,2445.5,2445.0,8.67133487]
[1725476248375,3.21393484,2445.5,2445.0,8.67133487]
[1725476249170,2.82,2445.1,2445.0,0.00613484]
[1725476249375,3.02953872,2445.1,2445.0,0.00613484]
[1725476249674,13.11913872,2445.1,2445.0,0.00613484]
[1725476249861,13.11913872,2445.1,2444.1,0.9337]
[1725476250063,6.0278,2444.6,2444.1,0.9337]
[1725476250858,6.0278,2444.6,2444.1,0.93983484]
[1725476251668,3.21276079,2445.1,2444.2,8.73374836]
[1725476251669,9.03102207,2445.1,2444.2,8.73374836]
[1725476251964,3.2078,2445.1,2444.3,3.2078]
[1725476252476,3.2078,2445.1,2444.4,8.42277453]
[1725476252668,3.2078,2445.1,2444.5,0.4758]
[1725476254466,3.2078,2445.1,2444.2,3.2078]
[1725476254467,3.77,2444.9,2444.2,3.2078]
[1725476254668,3.77,2444.9,2444.1,0.00613484]